fUSD/lending_fUSD_20250610
["ID","MTS","AMOUNT","RATE_DAILY","PERIOD"]
[365281868,1749576634335,-490.0,0.00017095,2]
[365281869,1749576634345,-446.83638152,0.00017095,2]
[365281870,1749576634354,-490.0,0.00017095,2]
[365281871,1749576634363,-490.0,0.00017095,2]
[365281872,1749576634373,-560.62,0.00017095,2]
[365281873,1749576634382,-490.0,0.00017095,2]
[365281874,1749576634391,-14530.23,0.00017095,2]
[365281875,1749576634401,-490.0,0.00017095,2]
[365281876,1749576634410,-490.0,0.00017095,2]
[365281877,1749576634420,-1395.72,0.00017095,2]
[365281878,1749576634430,-1417.27,0.00017095,2]
[365281879,1749576634440,-490.0,0.00017095,2]
[365281880,1749576634450,-490.0,0.00017095,2]
[365281881,1749576634461,-490.0,0.00017095,2]
[365281882,1749576634473,-490.0,0.00017095,2]
[365281883,1749576634483,-460.78613303,0.00017095,2]
[365281884,1749576634493,-490.0,0.00017095,2]
[365281885,1749576634503,-778.47,0.00017095,2]
[365281886,1749576634513,-721.33,0.00017095,2]
[365281887,1749576634523,-200.0,0.00017104,4]
[365281888,1749576634533,-500.0,0.00017183,2]
[365281889,1749576634542,-419.29,0.0001725,2]
[365281890,1749576634558,-490.0,0.0001726,2]
[365281891,1749576634569,-470.0,0.0001726,2]
[365281892,1749576634579,-490.0,0.0001726,2]
[365281893,1749576634589,-540.17,0.0001726,2]
[365281894,1749576634598,-490.0,0.0001726,2]
[365281895,1749576634608,-490.0,0.0001726,2]
[365281896,1749576634618,-490.0,0.0001726,2]
[365281897,1749576634628,-490.0,0.0001726,2]
[365281898,1749576634638,-490.0,0.0001726,2]
[365281899,1749576634648,-1177.52,0.0001726,2]
[365281900,1749576634659,-985.49,0.0001726,2]
[365281901,1749576634669,-490.0,0.0001726,2]
[365281902,1749576634679,-490.0,0.0001726,2]
[365281903,1749576634689,-490.0,0.0001726,2]
[365281904,1749576634699,-490.0,0.0001726,2]
[365281905,1749576634709,-490.0,0.0001726,2]
[365281906,1749576634718,-1455.96,0.0001726,2]
[365281907,1749576634729,-490.0,0.0001726,2]
[365281908,1749576634738,-264.57,0.0001726,2]
[365281909,1749576634748,-490.0,0.0001726,2]
[365281910,1749576634757,-490.0,0.0001726,2]
[365281911,1749576634767,-560.62,0.0001726,2]
[365281912,1749576634777,-490.0,0.0001726,2]
[365281913,1749576634786,-14530.23,0.0001726,2]
[365281914,1749576634796,-490.0,0.0001726,2]
[365281915,1749576634806,-490.0,0.0001726,2]
[365281916,1749576634816,-1395.72,0.0001726,2]
[365281917,1749576634826,-1417.27,0.0001726,2]
[365281918,1749576634835,-490.0,0.0001726,2]
[365281919,1749576634845,-490.0,0.0001726,2]
[365281920,1749576634854,-490.0,0.0001726,2]
[365281921,1749576634864,-490.0,0.0001726,2]
[365281922,1749576634874,-490.0,0.0001726,2]
[365281923,1749576634884,-778.47,0.0001726,2]
[365281924,1749576634893,-721.33,0.0001726,2]
[365281925,1749576634903,-500.0,0.0001735,2]
[365281926,1749576634913,-500.0,0.0001735,2]
[365281927,1749576634924,-504.4967963,0.0001735,2]
[365281928,1749576634934,-500.0,0.0001735,2]
[365281929,1749576634944,-211.0,0.00017376,2]
[365281930,1749576634954,-552.66740138,0.000174,2]
[365281931,1749576634964,-552.66740119,0.000174,2]
[365281932,1749576634974,-552.66740119,0.000174,2]
[365281933,1749576634984,-552.66740119,0.000174,2]
[365281934,1749576634994,-552.66740119,0.000174,2]
[365281935,1749576635003,-160.76969618,0.0001741,2]
[365281936,1749576635013,-552.66740119,0.00017417,2]
[365281937,1749576635023,-490.0,0.00017424,2]
[365281938,1749576635033,-490.0,0.00017424,2]
[365281939,1749576635043,-540.17,0.00017424,2]
[365281940,1749576635052,-490.0,0.00017424,2]
[365281941,1749576635061,-490.0,0.00017424,2]
[365281942,1749576635071,-490.0,0.00017424,2]
[365281943,1749576635081,-490.0,0.00017424,2]
[365281944,1749576635091,-490.0,0.00017424,2]
[365281945,1749576635101,-1177.52,0.00017424,2]
[365281946,1749576635110,-985.49,0.00017424,2]
[365281947,1749576635120,-490.0,0.00017424,2]
[365281948,1749576635130,-341.45,0.00017424,2]
[365281949,1749576635140,-490.0,0.00017424,2]
[365281950,1749576635149,-490.0,0.00017424,2]
[365281951,1749576635159,-490.0,0.00017424,2]
[365281952,1749576635169,-1455.96,0.00017424,2]
[365281953,1749576635179,-490.0,0.00017424,2]
[365281954,1749576635188,-490.0,0.00017424,2]
[365281955,1749576635198,-490.0,0.00017424,2]
[365281956,1749576635208,-560.62,0.00017424,2]
[365281957,1749576635218,-490.0,0.00017424,2]
[365281958,1749576635228,-14530.23,0.00017424,2]
[365281959,1749576635239,-354.89578652,0.00017424,2]
[365281960,1749576635249,-490.0,0.00017424,2]
[365281961,1749576635259,-1395.72,0.00017424,2]
[365281962,1749576635268,-1417.27,0.00017424,2]
[365281963,1749576635277,-490.0,0.00017424,2]
[365281964,1749576635288,-490.0,0.00017424,2]
[365281965,1749576635297,-490.0,0.00017424,2]
[365281966,1749576635307,-490.0,0.00017424,2]
[365281967,1749576635316,-280.85,0.00017424,2]
[365281968,1749576635326,-778.47,0.00017424,2]
[365281969,1749576635335,-721.33,0.00017424,2]
[365281970,1749576635345,-993.70060008,0.00017444,2]
[365281971,1749576635354,-1000.0,0.00017444,2]
[365281972,1749576635364,-500.0,0.00017444,2]
[365281973,1749576635374,-502.92160923,0.00017444,2]
[365281974,1749576635384,-552.66740119,0.00017521,2]
[365281975,1749576635393,-500.0,0.00017534,2]
[365281976,1749576635402,-200.0,0.0001756,4]
[365281977,1749576635412,-419.29,0.00017579,2]
[365281978,1749576635421,-269.51,0.00017579,2]
[365281979,1749576635431,-244.2,0.00017586,2]
[365281980,1749576635441,-500.0,0.00017588,2]
[365281981,1749576635451,-500.0,0.00017588,2]
[365281982,1749576635462,-490.0,0.00017589,2]
[365281983,1749576635473,-490.0,0.00017589,2]
[365281984,1749576635486,-540.17,0.00017589,2]
[365281985,1749576635496,-490.0,0.00017589,2]
[365281986,1749576635506,-490.0,0.00017589,2]
[365281987,1749576635517,-490.0,0.00017589,2]
[365281988,1749576635526,-490.0,0.00017589,2]
[365281989,1749576635536,-490.0,0.00017589,2]
[365281990,1749576635545,-1177.52,0.00017589,2]
[365281991,1749576635556,-985.49,0.00017589,2]
[365281992,1749576635565,-490.0,0.00017589,2]
[365281993,1749576635575,-480.0,0.00017589,2]
[365281994,1749576635584,-490.0,0.00017589,2]
[365281995,1749576635595,-490.0,0.00017589,2]
[365281996,1749576635604,-1455.96,0.00017589,2]
[365281997,1749576635613,-490.0,0.00017589,2]
[365281998,1749576635622,-480.0,0.00017589,2]
[365281999,1749576635633,-490.0,0.00017589,2]
[365282000,1749576635642,-560.62,0.00017589,2]
[365282001,1749576635652,-490.0,0.00017589,2]
[365282002,1749576635661,-14530.23,0.00017589,2]
[365282003,1749576635671,-490.0,0.00017589,2]
[365282004,1749576635680,-1395.72,0.00017589,2]
[365282005,1749576635689,-1417.27,0.00017589,2]
[365282006,1749576635699,-490.0,0.00017589,2]
[365282007,1749576635708,-490.0,0.00017589,2]
[365282008,1749576635718,-490.0,0.00017589,2]
[365282009,1749576635727,-490.0,0.00017589,2]
[365282010,1749576635737,-778.47,0.00017589,2]
[365282011,1749576635747,-721.33,0.00017589,2]
[365282012,1749576635756,-552.66740119,0.00017624,2]
[365282013,1749576635766,-552.66740119,0.00017728,2]
[365282014,1749576635776,-1000.0,0.00017731,2]
[365282015,1749576635785,-419.29,0.00017743,2]
[365282016,1749576635795,-490.0,0.00017753,2]
[365282017,1749576635804,-490.0,0.00017753,2]
[365282018,1749576635813,-540.17,0.00017753,2]
[365282019,1749576635823,-490.0,0.00017753,2]
[365282020,1749576635833,-490.0,0.00017753,2]
[365282021,1749576635843,-490.0,0.00017753,2]
[365282022,1749576635852,-490.0,0.00017753,2]
[365282023,1749576635862,-490.0,0.00017753,2]
[365282024,1749576635871,-1177.52,0.00017753,2]
[365282025,1749576635881,-985.49,0.00017753,2]
[365282026,1749576635890,-490.0,0.00017753,2]
[365282027,1749576635900,-490.0,0.00017753,2]
[365282028,1749576635909,-490.0,0.00017753,2]
[365282029,1749576635919,-1455.96,0.00017753,2]
[365282030,1749576635928,-490.0,0.00017753,2]
[365282031,1749576635938,-196.03378558,0.00017753,2]
[365282032,1749576635947,-560.62,0.00017753,2]
[365282033,1749576635956,-490.0,0.00017753,2]
[365282034,1749576635966,-14530.23,0.00017753,2]
[365282035,1749576635976,-490.0,0.00017753,2]
[365282036,1749576635985,-1395.72,0.00017753,2]
[365282037,1749576635995,-1417.27,0.00017753,2]
[365282038,1749576636005,-490.0,0.00017753,2]
[365282039,1749576636014,-490.0,0.00017753,2]
[365282040,1749576636024,-490.0,0.00017753,2]
[365282041,1749576636033,-490.0,0.00017753,2]
[365282042,1749576636042,-778.47,0.00017753,2]
[365282043,1749576636051,-721.33,0.00017753,2]
[365282044,1749576636061,-600.0,0.0001778,4]
[365282045,1749576636070,-500.0,0.00017808,2]
[365282046,1749576636080,-500.0,0.00017808,2]
[365282047,1749576636089,-409.14172664,0.00017808,2]
[365282048,1749576636098,-160.76969618,0.00017825,2]
[365282049,1749576636108,-552.66740119,0.00017831,2]
[365282050,1749576636117,-250.0,0.00017881,2]
[365282051,1749576636127,-500.0,0.00017898,2]
[365282052,1749576636136,-500.0,0.00017898,2]
[365282053,1749576636145,-500.0,0.00017898,2]
[365282054,1749576636332,-190.47715112,0.000179,2]
[365282055,1749576636342,-190.47715099,0.000179,2]
[365282056,1749576636351,-190.47715099,0.000179,2]
[365282057,1749576636360,-190.47715099,0.000179,2]
[365282058,1749576636370,-190.47715099,0.000179,2]
[365282059,1749576636380,-190.47715099,0.000179,2]
[365282060,1749576636389,-190.47715099,0.000179,2]
[365282061,1749576636398,-190.47715099,0.000179,2]
[365282062,1749576636408,-190.47715099,0.000179,2]
[365282063,1749576636417,-190.47715099,0.000179,2]
[365282064,1749576636426,-190.47715099,0.000179,2]
[365282065,1749576636436,-190.47715099,0.000179,2]
[365282066,1749576636446,-419.29,0.00017907,2]
[365282067,1749576636456,-490.0,0.00017917,2]
[365282068,1749576636471,-490.0,0.00017917,2]
[365282069,1749576636480,-540.17,0.00017917,2]
[365282070,1749576636489,-490.0,0.00017917,2]
[365282071,1749576636500,-490.0,0.00017917,2]
[365282072,1749576636510,-490.0,0.00017917,2]
[365282073,1749576636520,-490.0,0.00017917,2]
[365282074,1749576636530,-490.0,0.00017917,2]
[365282075,1749576636540,-1177.52,0.00017917,2]
[365282076,1749576636552,-985.49,0.00017917,2]
[365282077,1749576636561,-490.0,0.00017917,2]
[365282078,1749576636570,-490.0,0.00017917,2]
[365282079,1749576636580,-490.0,0.00017917,2]
[365282080,1749576636589,-1455.96,0.00017917,2]
[365282081,1749576636599,-490.0,0.00017917,2]
[365282082,1749576636608,-560.62,0.00017917,2]
[365282083,1749576636618,-301.31,0.00017917,2]
[365282084,1749576636627,-14530.23,0.00017917,2]
[365282085,1749576636636,-490.0,0.00017917,2]
[365282086,1749576636646,-1395.72,0.00017917,2]
[365282087,1749576636655,-1417.27,0.00017917,2]
[365282088,1749576636665,-490.0,0.00017917,2]
[365282089,1749576636675,-490.0,0.00017917,2]
[365282090,1749576636685,-490.0,0.00017917,2]
[365282091,1749576636695,-490.0,0.00017917,2]
[365282092,1749576636706,-778.47,0.00017917,2]
[365282093,1749576636716,-721.33,0.00017917,2]
[365282094,1749576636726,-552.66740119,0.00017934,2]
[365282095,1749576636735,-190.47715099,0.00017953,2]
[365282096,1749576636745,-896.43266265,0.00017958,2]
[365282097,1749576636755,-1000.0,0.00018,2]
[365282098,1749576636765,-18839.15212513,0.00018,2]
[365282099,1749576636774,-200.0,0.00018017,5]
[365282100,1749576636784,-552.66740119,0.00018038,2]
[365282101,1749576636793,-1680.0,0.00018053,2]
[365282102,1749576636803,-1000.0,0.00018056,2]
[365282103,1749576636813,-419.29,0.00018072,2]
[365282104,1749576636823,-17.59834601,0.00018074,2]
[365282105,1749576636839,-172.87880498,0.00018074,2]
[365282106,1749576636849,-176.90855182,0.00018081,2]
[365282108,1749576638207,-250.0,0.00016438,2]
[365282288,1749576640543,-240.0,0.00016438,2]
[365282290,1749576640553,-490.0,0.00016438,2]
[365282292,1749576640563,-490.0,0.00016602,2]
[365282294,1749576640572,-346.65666192,0.00016767,2]
[365282298,1749576640600,-143.34333808,0.00016767,2]
[365282300,1749576640609,-490.0,0.00016931,2]
[365282302,1749576640618,-490.0,0.00017095,2]
[365282304,1749576640628,-499.16144818,0.00018081,2]
[365282306,1749576640638,-490.0,0.00018082,2]
[365282308,1749576640647,-490.0,0.00018082,2]
[365282310,1749576640656,-490.0,0.00018082,2]
[365282312,1749576640665,-490.0,0.00018082,2]
[365282314,1749576640674,-1177.52,0.00018082,2]
[365282316,1749576640683,-985.49,0.00018082,2]
[365282318,1749576640692,-459.76352392,0.00018082,2]
[365282320,1749576640701,-490.0,0.00018082,2]
[365282322,1749576640710,-490.0,0.00018082,2]
[365282324,1749576640719,-1455.96,0.00018082,2]
[365282326,1749576640729,-490.0,0.00018082,2]
[365282328,1749576640738,-560.62,0.00018082,2]
[365282330,1749576640750,-14530.23,0.00018082,2]
[365282332,1749576640759,-490.0,0.00018082,2]
[365282334,1749576640768,-1395.72,0.00018082,2]
[365282336,1749576640778,-1417.27,0.00018082,2]
[365282338,1749576640787,-490.0,0.00018082,2]
[365282340,1749576640797,-490.0,0.00018082,2]
[365282342,1749576640806,-490.0,0.00018082,2]
[365282344,1749576640816,-490.0,0.00018082,2]
[365282346,1749576640825,-778.47,0.00018082,2]
[365282348,1749576640834,-721.33,0.00018082,2]
[365282350,1749576640844,-461.25,0.00018082,2]
[365282352,1749576640853,-796.87,0.00018082,2]
[365282354,1749576640863,-552.66740119,0.00018141,2]
[365282356,1749576640873,-190.47715099,0.00018195,2]
[365282358,1749576640882,-156.587,0.00018224,2]
[365282360,1749576640892,-215.0738,0.00018224,2]
[365282362,1749576640901,-4170.82,0.00018226,2]
[365282364,1749576640910,-350.0,0.00018228,2]
[365282366,1749576640919,-160.76969618,0.0001824,2]
[365282368,1749576640929,-552.66740119,0.00018245,2]
[365282370,1749576640939,-490.0,0.00018246,2]
[365282372,1749576640949,-151.0,0.00018246,2]
[365282374,1749576640957,-490.0,0.00018246,2]
[365282376,1749576640968,-490.0,0.00018246,2]
[365282378,1749576640977,-490.0,0.00018246,2]
[365282380,1749576640986,-1177.52,0.00018246,2]
[365282382,1749576640995,-985.49,0.00018246,2]
[365282384,1749576641005,-490.0,0.00018246,2]
[365282386,1749576641014,-490.0,0.00018246,2]
[365282388,1749576641024,-1455.96,0.00018246,2]
[365282390,1749576641033,-490.0,0.00018246,2]
[365282392,1749576641042,-560.62,0.00018246,2]
[365282394,1749576641051,-14530.23,0.00018246,2]
[365282396,1749576641061,-490.0,0.00018246,2]
[365282398,1749576641071,-1395.72,0.00018246,2]
[365282400,1749576641082,-1417.27,0.00018246,2]
[365282402,1749576641090,-490.0,0.00018246,2]
[365282404,1749576641100,-490.0,0.00018246,2]
[365282406,1749576641109,-490.0,0.00018246,2]
[365282408,1749576641119,-490.0,0.00018246,2]
[365282410,1749576641128,-778.47,0.00018246,2]
[365282411,1749576641137,-721.33,0.00018246,2]
[365282414,1749576641147,-190.47715099,0.00018316,2]
[365282416,1749576641157,-420.0,0.00018317,2]
[365282418,1749576641166,-896.43266265,0.00018323,2]
[365282419,1749576641175,-552.66740119,0.00018348,2]
[365282422,1749576641185,-708.8,0.00018356,2]
[365282424,1749576641194,-1163.59,0.00018356,2]
[365282425,1749576641203,-170.69,0.00018356,2]
[365282427,1749576641213,-300.0,0.00018356,2]
[365282430,1749576641224,-708.68,0.00018356,2]
[365282431,1749576641234,-454.85,0.00018356,2]
[365282433,1749576641243,-454.85,0.00018356,2]
[365282435,1749576641253,-454.85,0.00018356,2]
[365282437,1749576641262,-454.85,0.00018356,2]
[365282439,1749576641272,-454.85,0.00018356,2]
[365282441,1749576641281,-454.85,0.00018356,2]
[365282443,1749576641291,-1002.76,0.00018356,2]
[365282445,1749576641300,-150.0,0.00018361,2]
[365282447,1749576641309,-234.0,0.00018408,2]
[365282449,1749576641319,-490.0,0.0001841,2]
[365282451,1749576641328,-490.0,0.0001841,2]
[365282453,1749576641338,-490.0,0.0001841,2]
[365282455,1749576641347,-490.0,0.0001841,2]
[365282457,1749576641356,-1177.52,0.0001841,2]
[365282459,1749576641366,-985.49,0.0001841,2]
[365282461,1749576641376,-490.0,0.0001841,2]
[365282463,1749576641385,-490.0,0.0001841,2]
[365282465,1749576641394,-1455.96,0.0001841,2]
[365282467,1749576641403,-490.0,0.0001841,2]
[365282469,1749576641413,-560.62,0.0001841,2]
[365282471,1749576641422,-14530.23,0.0001841,2]
[365282472,1749576641432,-490.0,0.0001841,2]
[365282474,1749576641443,-1395.72,0.0001841,2]
[365282476,1749576641452,-1417.27,0.0001841,2]
[365282479,1749576641462,-490.0,0.0001841,2]
[365282481,1749576641472,-490.0,0.0001841,2]
[365282483,1749576641484,-490.0,0.0001841,2]
[365282485,1749576641494,-490.0,0.0001841,2]
[365282487,1749576641503,-778.47,0.0001841,2]
[365282489,1749576641514,-721.33,0.0001841,2]
[365282491,1749576641523,-190.47715099,0.00018437,2]
[365282492,1749576641532,-552.66740119,0.00018452,2]
[365282494,1749576641542,-200.0,0.00018473,6]
[365282496,1749576641551,-152.0,0.00018488,4]
[365282498,1749576641562,-1037.00642053,0.00018492,2]
[365282500,1749576641572,-694.53,0.00018504,2]
[365282502,1749576641581,-637.0,0.00018526,2]
[365282504,1749576641590,-802.0,0.00018526,2]
[365282506,1749576641599,-1275.0,0.00018526,2]
[365282508,1749576641608,-558.0,0.00018526,2]
[365282510,1749576641617,-2001.0,0.00018526,2]
[365282512,1749576641627,-590.0,0.00018526,2]
[365282514,1749576641636,-927.0,0.00018526,2]
[365282516,1749576641646,-1256.0,0.00018526,2]
[365282518,1749576641655,-1159.0,0.00018526,2]
[365282520,1749576641664,-3330.0,0.00018526,2]
[365282522,1749576641674,-4085.0,0.00018526,2]
[365282524,1749576641683,-155.0,0.00018526,2]
[365282526,1749576641694,-7064.0,0.00018526,2]
[365282528,1749576641703,-1593.02,0.00018548,2]
[365282530,1749576641712,-1062.2,0.00018548,2]
[365282532,1749576641721,-552.66740119,0.00018555,2]
[365282534,1749576641730,-190.47715099,0.00018558,2]
[365282536,1749576641740,-398.15895121,0.00018575,2]
[365282538,1749576641749,-490.0,0.00018575,2]
[365282540,1749576641758,-490.0,0.00018575,2]
[365282542,1749576641767,-490.0,0.00018575,2]
[365282544,1749576641778,-1177.52,0.00018575,2]
[365282546,1749576641787,-985.49,0.00018575,2]
[365282548,1749576641796,-490.0,0.00018575,2]
[365282550,1749576641806,-490.0,0.00018575,2]
[365282552,1749576641815,-1455.96,0.00018575,2]
[365282554,1749576641824,-490.0,0.00018575,2]
[365282556,1749576641837,-560.62,0.00018575,2]
[365282558,1749576641847,-14530.23,0.00018575,2]
[365282561,1749576641857,-490.0,0.00018575,2]
[365282563,1749576641866,-1395.72,0.00018575,2]
[365282565,1749576641876,-1417.27,0.00018575,2]
[365282567,1749576641885,-490.0,0.00018575,2]
[365282569,1749576641895,-467.89611852,0.00018575,2]
[365282571,1749576641905,-490.0,0.00018575,2]
[365282573,1749576641914,-490.0,0.00018575,2]
[365282575,1749576641924,-778.47,0.00018575,2]
[365282577,1749576641933,-721.33,0.00018575,2]
[365282579,1749576641942,-990.97282202,0.0001858,2]
[365282581,1749576641951,-150.0,0.00018591,2]
[365282583,1749576641962,-2344.68,0.000186,2]
[365282585,1749576641971,-25024.68,0.000186,2]
[365282587,1749576641981,-300.0,0.000186,6]
[365282589,1749576641990,-151.0,0.00018601,2]
[365282591,1749576641999,-151.0,0.00018601,2]
[365282593,1749576642011,-151.0,0.00018601,2]
[365282595,1749576642021,-151.0,0.00018601,2]
[365282597,1749576642030,-234.0,0.00018607,2]
[365282599,1749576642039,-654.0,0.00018612,2]
[365282601,1749576642050,-500.0,0.0001863,2]
[365282602,1749576642060,-160.76969618,0.00018655,2]
[365282604,1749576642069,-552.66740119,0.00018659,2]
[365282607,1749576642079,-190.47715099,0.00018679,2]
[365282608,1749576642088,-1163.18,0.00018685,2]
[365282610,1749576642098,-150.0,0.00018685,2]
[365282613,1749576642107,-341.22,0.00018685,2]
[365282614,1749576642117,-423.48,0.00018685,2]
[365282617,1749576642127,-896.43266265,0.00018687,2]
[365282619,1749576642137,-2344.68,0.000187,2]
[365282621,1749576642146,-600.0,0.000187,6]
[365282623,1749576642155,-500.0,0.00018738,2]
[365282625,1749576642166,-151.0,0.00018739,2]
[365282627,1749576642175,-490.0,0.00018739,2]
[365282629,1749576642184,-421.70665258,0.00018739,2]
[365282631,1749576642193,-490.0,0.00018739,2]
[365282633,1749576642203,-1177.52,0.00018739,2]
[365282634,1749576642212,-985.49,0.00018739,2]
[365282636,1749576642222,-490.0,0.00018739,2]
[365282638,1749576642232,-490.0,0.00018739,2]
[365282641,1749576642241,-1455.96,0.00018739,2]
[365282643,1749576642251,-490.0,0.00018739,2]
[365282645,1749576642261,-560.62,0.00018739,2]
[365282647,1749576642271,-14530.23,0.00018739,2]
[365282649,1749576642280,-490.0,0.00018739,2]
[365282651,1749576642290,-1395.72,0.00018739,2]
[365282653,1749576642303,-1417.27,0.00018739,2]
[365282655,1749576642318,-490.0,0.00018739,2]
[365282657,1749576642327,-490.0,0.00018739,2]
[365282658,1749576642337,-490.0,0.00018739,2]
[365282660,1749576642347,-778.47,0.00018739,2]
[365282662,1749576642356,-721.33,0.00018739,2]
[365282664,1749576642366,-552.66740119,0.00018762,2]
[365282666,1749576642375,-190.47715099,0.000188,2]
[365282668,1749576642385,-276.88206124,0.000188,2]
[365282670,1749576642394,-900.0,0.000188,6]
[365282672,1749576642403,-234.0,0.00018833,2]
[365282674,1749576642413,-552.66740119,0.00018866,2]
[365282676,1749576642422,-500.0,0.00018873,2]
[365282678,1749576642432,-201.55085172,0.00018873,2]
[365282680,1749576642441,-528.79315848,0.00018873,2]
[365282682,1749576642451,-317.54218838,0.00018873,2]
[365282684,1749576642461,-500.0,0.00018873,2]
[365282686,1749576642474,-500.0,0.00018873,2]
[365282688,1749576642483,-500.0,0.00018873,2]
[365282690,1749576642493,-500.0,0.00018873,2]
[365282692,1749576642502,-500.25226326,0.00018873,2]
[365282694,1749576642512,-500.0,0.00018873,2]
[365282696,1749576642526,-500.0,0.00018873,2]
[365282698,1749576642539,-161.40784034,0.00018873,2]
[365282700,1749576642548,-500.0,0.00018873,2]
[365282702,1749576642558,-500.0,0.00018873,2]
[365282704,1749576642567,-500.0,0.00018873,2]
[365282706,1749576642576,-500.0,0.00018873,2]
[365282708,1749576642585,-500.0,0.00018873,2]
[365282710,1749576642594,-452.00655032,0.00018873,2]
[365282712,1749576642603,-197.76589758,0.0001889,2]
[365282714,1749576642613,-2344.68,0.000189,2]
[365282716,1749576642622,-1200.0,0.000189,6]
[365282718,1749576642631,-151.0,0.000189,2]
[365282720,1749576642641,-833.29909032,0.000189,3]
[365282722,1749576642650,-151.0,0.000189,2]
[365282724,1749576642659,-151.0,0.000189,2]
[365282726,1749576642669,-676.07,0.00018903,2]
[365282728,1749576642678,-490.0,0.00018904,2]
[365282730,1749576642687,-272.22311869,0.00018904,2]
[365282732,1749576642696,-1177.52,0.00018904,2]
[365282733,1749576642705,-985.49,0.00018904,2]
[365282735,1749576642714,-490.0,0.00018904,2]
[365282737,1749576642723,-490.0,0.00018904,2]
[365282739,1749576642732,-1455.96,0.00018904,2]
[365282741,1749576642742,-490.0,0.00018904,2]
[365282743,1749576642751,-560.62,0.00018904,2]
[365282745,1749576642760,-14530.23,0.00018904,2]
[365282747,1749576642770,-490.0,0.00018904,2]
[365282748,1749576642780,-1395.72,0.00018904,2]
[365282749,1749576642789,-1417.27,0.00018904,2]
[365282750,1749576642799,-490.0,0.00018904,2]
[365282751,1749576642808,-564.53,0.00018904,2]
[365282752,1749576642817,-490.0,0.00018904,2]
[365282753,1749576642827,-778.47,0.00018904,2]
[365282754,1749576642836,-721.33,0.00018904,2]
[365282755,1749576642845,-582.70865701,0.00018904,2]
[365282756,1749576642855,-200.0,0.00018929,6]
[365282757,1749576642865,-552.66740119,0.00018969,2]
[365282758,1749576642874,-197.57777096,0.00018989,2]
[365282759,1749576642883,-152.0,0.00018989,5]
[365282761,1749576642893,-2344.68,0.00019,2]
[365282763,1749576642903,-2344.68,0.00019,2]
[365282765,1749576642912,-250.0,0.00019,2]
[365282768,1749576642922,-156.08806021,0.00019014,2]
[365282770,1749576642935,-896.43266265,0.00019051,2]
[365282772,1749576642944,-490.0,0.00019068,2]
[365282774,1749576642953,-151.0,0.00019068,2]
[365282776,1749576642963,-1177.52,0.00019068,2]
[365282778,1749576642972,-985.49,0.00019068,2]
[365282781,1749576642982,-151.0,0.00019068,2]
[365282783,1749576642991,-151.0,0.00019068,2]
[365282786,1749576643007,-151.0,0.00019068,2]
[365282789,1749576643017,-151.0,0.00019068,2]
[365282824,1749576643224,-490.0,0.00019068,2]
[365282827,1749576643234,-151.0,0.00019068,2]
[365282830,1749576643243,-490.0,0.00019068,2]
[365282832,1749576643253,-151.0,0.00019068,2]